Cogmind - Beta 15 @@@ ROGUE MODE // 2025.08.14 @ 17:21:46 Player: Andru7428 Result: Destroyed by Piercing Trap Performance ------------- Evolutions (0) 0 Regions Visited (2) 400 Robots Destroyed (44) 220 Value Destroyed (717) 717 Prototype IDs (0) 0 Alien Tech Used (0) 0 Bonus (0) 0 TOTAL SCORE: 1337 Bonus ------- None Cogmind --------- Core Integrity 0/250 Matter 290/300 Energy 261/265 System Corruption 0% Temperature Cool (2) Movement Treading (160) Location -10/Subcaves Parts ------- > --- POWER (1) -------- Improved Ion Engine > --- PROPULSION (2) --- Light Treads Light Treads > --- UTILITY (2) ------ Large Storage Unit Seismic Detector > --- WEAPON (2) ------- Beam Cannon Assault Rifle > --- INVENTORY (15) --- Subdweller Power Source Light Treads Compact Wheel Heat Sink High-capacity Matter Pod (18) Light Armor Plating Medium Armor Plating Medium Armor Plating Medium Armor Plating Medium Armor Plating EM Pulse Gun Beam Cannon Battle Cannon Grenade Launcher Mining Laser Peak State ------------ > --- POWER ------------ Improved Ion Engine > --- PROPULSION ------- Light Treads Light Treads > --- UTILITY ---------- Large Storage Unit Medium Armor Plating > --- WEAPON ----------- Beam Cannon Assault Rifle > --- INVENTORY -------- Subdweller Power Source Light Treads Compact Wheel Heat Sink High-capacity Matter Pod Seismic Detector Light Armor Plating Medium Armor Plating Medium Armor Plating Medium Armor Plating EM Pulse Gun Beam Cannon Battle Cannon Grenade Launcher Mining Laser [Rating: 11] Favorites ----------- Power Ion Engine Engine Ion Engine Propulsion Light Treads Treads Light Treads Utility Seismic Detector Device Seismic Detector Storage Large Storage Unit Protection Medium Armor Plating Weapon Assault Rifle Energy Gun Small Laser Energy Cannon Beam Cannon Ballistic Gun Assault Rifle Launcher Grenade Launcher Special Weapon Mining Laser Build | -11 -10 -10 ------- Run | Yrd Mat Sub Slots Evolved . | . . . Power . | . . . Propulsion . | . . . Utility . | . . . Weapon . | . . . Parts Attached 22 | 7 8 7 Power 4 | 1 1 2 Engine 4 | 1 1 2 Core . | . . . Reactor . | . . . Propulsion 3 | 2 . 1 Treads 3 | 2 . 1 Leg . | . . . Wheel . | . . . Hover . | . . . Flight . | . . . Utility 8 | 2 5 1 Device 3 | 1 2 . Storage 4 | 1 3 . Processor . | . . . Hackware . | . . . Protection 1 | . . 1 Artifact . | . . . Weapon 7 | 2 2 3 Energy Gun 1 | 1 . . Energy Cannon 1 | . 1 . Ballistic Gun 3 | 1 1 1 Ballistic Cannon . | . . . Launcher 1 | . . 1 Special Weapon 1 | . . 1 Impact Weapon . | . . . Slashing Weapon . | . . . Piercing Weapon . | . . . Special Melee Weapon . | . . . Unidentified Prototypes . | . . . Parts Lost 3 | . . 3 Power 2 | . . 2 Propulsion . | . . . Utility . | . . . Weapon 1 | . . 1 Highest Loss Streak 1 | . . 1 To Critical Strikes . | . . . Average Backups 13 | 6 11 14 Power . | 1 1 . Propulsion 2 | 3 2 2 Utility 5 | . 4 7 Weapon 4 | 1 3 5 Tool/Special . | . . . Unused Backups 20 | . 8 12 Power 1 | . . 1 Propulsion 5 | . 3 2 Utility 9 | . 3 6 Weapon 5 | . 2 3 Tool/Special . | . . . Average Slot Usage (%) 99 | . 99 99 Engine 13 | . 14 13 Treads 27 | . 27 28 Device 13 | . 14 12 Storage 14 | . 14 14 Energy Gun 4 | . 12 . Energy Cannon 7 | . 1 10 Ballistic Gun 14 | . 14 14 Launcher 1 | . . 2 Peak Build Rating 11 | 7 8 11 Average Rating 8 | 5 7 9 On Entrance 5 | . 7 8 Naked Turns . | . . . Heaviest Build 48 | 13 48 39 Greatest Support 40 | 40 40 40 Greatest Overweight (x) 1 | . 1 . Average Overweight (x) . | . . . Largest Inventory Capacity 20 | 8 20 15 Average Capacity 14 | 7 14 15 Most Carried 15 | 8 15 15 Average Carried 13 | 6 11 14 Final Capacity 15 | 8 15 15 Final Carried 15 | 7 15 15 Class Distribution -------------------- 100% | Mutant Dominant Class ---------------- Mutant | -10/Materials Mutant | -10/Subcaves Resources | -11 -10 -10 ----------- Run | Yrd Mat Sub Matter Collected 1231 | 288 401 542 Remotely . | . . . Salvage Created 971 | 234 459 278 Parts 98 | 23 41 34 Haulers Intercepted 2 | . 2 . Recyclers Shooed . | . . . Parts Field Recycled . | . . . Retrieved Matter . | . . . Parts Self-Destructed 9 | . . 9 Prevented . | . . . Kills | -11 -10 -10 ------- Run | Yrd Mat Sub Combat Hostiles Destroyed 29 | . 16 13 Guns 17 | . 15 2 Cannons 3 | . 1 2 AOE 9 | . . 9 Classes Destroyed 8 | 2 4 2 Worker 3 | 1 2 . Tunneler 9 | 9 . . Hauler 2 | . 2 . Watcher 1 | . 1 . Swarmer 17 | . 12 5 Grunt 4 | . 4 . Sentry 1 | . . 1 Subdweller 7 | . . 7 Best Kill Streak 4 | 4 3 4 Combat Bots Only 4 | . 3 4 Max Kills in Single Turn 3 | 2 2 3 Gunslinging . | . . . Exploded 3 | . . 3 Melee . | . . . Uniques/NPCs Destroyed . | . . . Combat | -11 -10 -10 -------- Run | Yrd Mat Sub Hostile Shots Fired 127 | . 71 56 Missed 26 | . 11 15 Hits 101 | . 60 41 Projectile 101 | . 60 41 AOE 1 | . . 1 Critical Strikes 2 | . 1 1 Damage Taken 1203 | . 538 665 Core 262 | . 126 136 Absorbed by Shields . | . . . Regen/Repaired (Parts) 130 | . 130 . Core Remaining (%) 100 | 100 . . Volleys Fired 137 | 18 63 56 Largest 2 | 2 2 2 Hottest 100 | 60 80 100 Shots Fired 231 | 36 126 69 Gun 170 | 36 121 13 Cannon 18 | . 5 13 Launcher 25 | . . 25 Special 18 | . . 18 Kinetic 94 | 18 63 13 Thermal 112 | 18 63 31 Explosive 25 | . . 25 Electromagnetic . | . . . Robot Hit Streak 14 | 11 7 14 Robot Miss Streak 6 | 3 6 2 Penetration Max . | . . . Secondary Targets 3 | . 3 . Max Gunslinging Chain 1 | . 1 . Shots Hit Robots 119 | 20 67 32 Core Hits 59 | 12 28 19 Critical Kills . | . . . Critical Parts Destroyed . | . . . Critical Strikes . | . . . Melee Attacks . | . . . Impact . | . . . Slashing . | . . . Piercing . | . . . Sneak Attacks . | . . . Combat Hostiles . | . . . Follow-up Attacks . | . . . Damage Inflicted 2256 | 219 782 1255 Guns 1046 | 219 706 121 Cannons 246 | . 54 192 Explosions 942 | . . 942 Melee . | . . . Ramming 22 | . 22 . Kinetic 497 | 77 299 121 Thermal 795 | 142 461 192 Explosive 942 | . . 942 Electromagnetic . | . . . Impact . | . . . Slashing . | . . . Piercing . | . . . Highest Corruption . | . . . Average Corruption . | . . . Corruption Purged . | . . . Corruption Blocked . | . . . Overload Shots . | . . . Overflow Damage 21 | . . 21 Projectiles . | . . . Explosions 21 | . . 21 Melee . | . . . Knockbacks . | . . . Impact . | . . . Kinetic . | . . . Secondary . | . . . Self-Inflicted Damage 76 | . . 76 Shots 4 | . . 4 Rammed 5 | . 5 . Targets Rammed 6 | . 6 . Kicked . | . . . Crushed 1 | . 1 . Highest Temperature 64 | 40 64 11 Average Temperature 25 | 17 27 11 Received Heat Transfer 216 | . 48 168 Siege Activations . | . . . Martial Activations . | . . . Shielding Activations . | . . . Robots Disrupted . | . . . Combat Hostiles . | . . . Robots Corrupted . | . . . Combat Hostiles . | . . . Parts Fried . | . . . Impact Corruptions . | . . . Robots Melted . | . . . Combat Hostiles . | . . . Parts Melted 1 | . 1 . Heat Transferred 1743 | 325 1011 407 Parts Sabotaged . | . . . Parts Stolen . | . . . Parts Stripped . | . . . Power Chain Reactions . | . . . Alert | -11 -10 -10 ------- Run | Yrd Mat Sub Maximum Alert Level . | . . . Low Security (%) 100 | 100 100 . Level 1 . | . . . Level 2 . | . . . Level 3 . | . . . Level 4 . | . . . Level 5 . | . . . High Security . | . . . Max Security . | . . . Peak Influence 92 | 10 92 . Initial . | . . . Average 21 | 1 26 . Influence Increases 709 | 50 449 210 Destroy 0b10 Robot/C 440 | . 320 120 Destroy 0b10 Robot/NC 75 | 50 25 . Destroy Leader 66 | . 66 . Successful Hack 8 | . 8 . Lose Combat Pursuer 120 | . 30 90 Influence Decreases 607 | 50 418 139 Entered New Map 15 | . . 15 Time Decay 496 | 50 342 104 Lost Part 20 | . . 20 Purge Threat 76 | . 76 . Squads Dispatched 2 | . 2 . Investigation . | . . . Extermination . | . . . Reinforcement 2 | . 2 . Assault . | . . . Garrison . | . . . Intercept . | . . . Searches Triggered . | . . . Construction Impeded . | . . . Haulers Reinforced . | . . . Active Scanning Responses . | . . . Cargo Convoy Interrupts . | . . . Stealth | -11 -10 -10 --------- Run | Yrd Mat Sub Distress Signals 2 | . 2 . Communications Jammed . | . . . Distress Signals . | . . . Times Spotted 45 | . 27 18 Peak Tracking Total 6 | . 5 6 Tactical Retreats 4 | . 1 3 Traps | -11 -10 -10 ------- Run | Yrd Mat Sub Traps Triggered 3 | . 2 1 Indirectly . | . . . Trap Hack Attempts . | . . . Triggered . | . . . Disarmed . | . . . Reprogrammed . | . . . Reused . | . . . Traps Extracted . | . . . Installed . | . . . Triggered . | . . . Machines | -11 -10 -10 ---------- Run | Yrd Mat Sub Machines Disabled 2 | . . 2 Max in Single Turn 1 | . . 1 Machines Repaired . | . . . Machines Dismantled . | . . . Machines Sabotaged . | . . . Overloaded Fab Kills . | . . . Hacking | -11 -10 -10 --------- Run | Yrd Mat Sub Machines Accessed 6 | . 6 . Terminals 5 | . 5 . Fabricators . | . . . Repair Stations 1 | . 1 . Recycling Units . | . . . Scanalyzers . | . . . Garrison Access . | . . . Total Hacks 24 | . 24 . Successful 13 | . 13 . Failed 11 | . 11 . Catastrophic . | . . . Database Lockouts . | . . . Manual 18 | . 18 . Terminals 18 | . 18 . Fabricators . | . . . Repair Stations 6 | . 6 . Recycling Units . | . . . Scanalyzers . | . . . Garrison Access . | . . . Terminal Hacks 2 | . 2 . Robot Analysis 1 | . 1 . Unreport Threat 1 | . 1 . Fabricator Hacks . | . . . Repair Station Hacks 4 | . 4 . Scan Component 2 | . 2 . Repair 2 | . 2 . Recycling Unit Hacks . | . . . Scanalyzer . | . . . Garrison Access Hacks . | . . . Unauthorized Hacks 7 | . 7 . Terminals 7 | . 7 . Botnet 2 | . 2 . Skim 5 | . 5 . Fabricators . | . . . Repair Stations . | . . . Recycling Units . | . . . Scanalyzers . | . . . Garrison Access . | . . . Data Cores Recovered . | . . . Used . | . . . Hacking Detections 6 | . 6 . Full Trace Events . | . . . Feedback Events . | . . . Feedback Blocked . | . . . Robot Schematics Acquired . | . . . Robots Built . | . . . Authchips . | . . . Time . | . . . Total Robot Build Rating . | . . . Part Schematics Acquired . | . . . Parts Built . | . . . Authchips . | . . . Time . | . . . Total Part Build Rating . | . . . Parts Repaired 2 | . 2 . Time 52 | . 52 . Parts Recycled . | . . . Recycled Matter . | . . . Retrieved Matter . | . . . Retrieved Components . | . . . Parts Scanalyzed . | . . . Part Schematics Acquired . | . . . Parts Damaged . | . . . Bothacking | -11 -10 -10 ------------ Run | Yrd Mat Sub Used RIF Installer . | . . . Robots Hacked . | . . . Non-combat . | . . . Combat . | . . . Robot Hacks Applied . | . . . Relay Couplers Released . | . . . Fabnet Peak Effective % . | . . . Robots Rewired . | . . . Allies Hacked . | . . . Hacks Repelled . | . . . Allies | -11 -10 -10 -------- Run | Yrd Mat Sub Total Allies . | . . . Largest Group . | . . . Highest-Rated Group . | . . . Highest-Rated Ally . | . . . Total Orders . | . . . Ally Attacks . | . . . Total Damage . | . . . Kills . | . . . Allies Corrupted . | . . . Allies Melted . | . . . Intel | -11 -10 -10 ------- Run | Yrd Mat Sub Active Infowar (turns) 3887 | 15 1388 2484 Seismic 3887 | 15 1388 2484 Robot Analysis Total 1 | . 1 . Derelict Logs Recovered . | . . . Drone Launches . | . . . Drone Recoveries . | . . . Exploration | -11 -10 -10 ------------- Run | Yrd Mat Sub Turns Passed 4371 | 284 1388 2699 Spaces Moved 2063 | 123 655 1285 Core 3 | 3 . . Treads 2060 | 120 655 1285 Legs . | . . . Wheels . | . . . Hover . | . . . Flight . | . . . Fastest Speed 50 | 50 160 160 Average Speed 161 | 157 165 160 Slowest Speed 240 | 160 240 160 Overloaded Moves . | . . . Propulsion Burnouts . | . . . Robots Hopped . | . . . Potential Cave-ins . | . . . Cave-ins Triggered . | . . . Exploration Rate (%) 52 | 5 86 67 Regions Visited 2 Branch Regions 1 Pre-discovered Areas . | . . . Known Exits Taken 1 | . 1 . Unknown Exits Taken 1 | 1 . . Scrap Searched 2 | . . 2 Spaces Dug 43 | . . 43 Terrain Destroyed 144 | . . 144 Melee . | . . . Projectile 9 | . . 9 AOE 135 | . . 135 Terrain Rammed . | . . . Walls Destroyed . | . . . Machines Disabled . | . . . Actions | -11 -10 -10 --------- Run | Yrd Mat Sub Total 2837 | 179 844 1814 Wait 542 | 22 78 442 Move 2061 | 122 654 1285 Hop . | . . . Pick Up 30 | 10 17 3 Fast Attach 9 | 4 4 1 Attach 5 | 3 . 2 Detach . | . . . Swap 31 | . 8 23 Drop 16 | . 14 2 Fire 137 | 18 63 56 Melee . | . . . Ram . | . . . Kick . | . . . Crush 6 | . 6 . Escape Stasis . | . . . Rewire . | . . . Trap . | . . . Miscellaneous . | . . . Route ------- -11/Scrapyard -10/Materials (discovered 6 exits: *Mat x3 / *Min x2 / *Sub) -10/Subcaves (discovered 3 exits: Mat x2 / *Rec) History --------- Turn | Location | Event 2 | -11/Scrapyard | Met Revision 17 23 | -11/Scrapyard | Discovered new exit (range 16) 285 | -11/Scrapyard | Entered Materials 310 | -10/Materials | Build established: Mutant 778 | -10/Materials | Repaired Lgt. Treads 806 | -10/Materials | Repaired Lgt. Treads 955 | -10/Materials | Discovered new exit (range 16) 1096 | -10/Materials | Discovered new exit (range 14) 1236 | -10/Materials | Core integrity fell below 50% 1311 | -10/Materials | Identified exit to Materials 1311 | -10/Materials | Identified exit to Mines 1400 | -10/Materials | Learned location of 2 exits from Subcaves 1430 | -10/Materials | Identified exit to Subcaves 1456 | -10/Materials | Learned location of 2 exits from Mines 1480 | -10/Materials | Learned 4 Recycling zone layouts 1505 | -10/Materials | Learned 2 Materials zone layouts 1673 | -10/Materials | Entered Subcaves 1674 | -10/Subcaves | Identified exit to Materials 1674 | -10/Subcaves | Identified exit to Recycling 2881 | -10/Subcaves | Ambushed by Subdweller buried in earth 2886 | -10/Subcaves | Core integrity fell below 20% 2973 | -10/Subcaves | A swath of the cavern ceiling suddenly collapsed 4372 | -10/Subcaves | Destroyed by Piercing Trap Last Messages --------------- 03977_ Subatomizers dissect the Wheel. 03978_ Acquired 19 matter. 03986_ Acquired 36 matter. 03988_ Subatomizers dissect the Wheel. 03988_ The unstable cave ceiling collapses. 03988_ Scrap Shield Fragment crushed. 03989_ Acquired Sub. Power Source. 03995_ Acquired 10 matter. 03999_ Subatomizers dissect the Wheel. 04000_ The unstable cave ceiling collapses. 04000_ Acquired 21 matter. 04011_ Acquired 10 matter. 04012_ Acquired 2 matter. 04016_ Acquired 4 matter. 04017_ Acquired 2 matter. 04024_ Acquired 14 matter. 04040_ Subatomizers dissect the Wheel. 04372_ Triggered Piercing Trap. 04372_ Spikes shoot up from the floor. 04372_ Critical hit (Impale). Map ----- +----------------------------------------------------+ | | | | | | | | | ?????????????????????????????????????????????????? | | ?????????????????????????????????????????????????? | | ?????????????????????????????????????????????????? | | ?????????????????????????????????????????????????? | | ?????????????????????????????????????????????????? | | ?????????????????????????????????????????????????? | | ?????????????????????????????????????????????????? | | ?????????????????????????????????????????????????? | | ?????????????????????????????????????????????????? | | ?????????????????????????????????????????????????? | | ?????????????????????????????????????????????????? | | ?????????????????????????????????????????????????? | | ?????????????????????????????????????????????????? | | ?????????????????????????????????????????????????? | | ???????????????????????#####??????????????###????? | | ??????????????????????## ####???????????# ##???? | | ?????????????????###### #??????????## ##??? | | ?????????????????# #??????????# #### | | ??????????????????? #??????????# ^ # | | ????????????????????? ###?????????# | | ??????????????????????? ## ##????#### | | ????????????????????????#@ ## ###### ## | | ?????????????????####???# # | | ?????????????????# ##### ### ## | | ????????????????## #?# #### #? | | ???????????????## ### #### #?? | | ??????????????## ## ^ ## ##?? | | ?????????????## ## #???? | | ????????????## ## ## ##????# | | ????????????# ## ### ##??### | | ????????????# ^ # #### #?## | | ???????????# #### #######?# ### | | ???????????######????# ####????# | | ?????????????????????## #????# | | ??????????????????????## #???# | | ???????????????????????## ##??# ###### | | ???????????????????????## ##?######????## | | ?????????????????????### ##???????????# | | ?????????????????????# #???????????# | | ?????????????????????# #??????????? | | ?????????????????????# #??????????? | | ?????????????????????# ##?????????? | | ?????????????????????### ### ##??###??? | | ??????????????????????## ### #?# #??? | | ?????????????????????## ## #? #??? | | ?????????????????????# ### #??? | +----------------------------------------------------+ Best States ------------- Heat Dissipation 25 Energy Generation 12 Energy Capacity 265 Matter Stores 300 Matter Capacity 300 Sight Range 16 Terrain Scan Density 10 Armor Coverage 225 Evasion (%) 40 Recoil Reduction 2 Item Schematics ----------------- None Robot Schematics ------------------ None Fabricated ------------ Nothing Repaired ---------- Lgt. Treads | 48% | -10/Materials Lgt. Treads | 58% | -10/Materials Alien Tech Used ----------------- None Achievements -------------- None Challenges ------------ None Game ------ Seed ImpulseTargetingMonowheel Manual? 0 Play Time 00:23:50 Cumulative 382.0 hours Start 2025.08.14 @ 16:57:01 End 2025.08.14 @ 17:21:46 Sessions 1 Manual Loads 0 Difficulty Rogue Special Mode None Game No. 238 Rogue 238 Adventurer 0 Explorer 0 Win Type - Total 8 Types 8/0/0/0/0/0/0/0/0/0 Lore% 79 Gallery% 75 Achievement% 68 Wizard Run 0 Options --------- Layout 1 ASCII 0 Keyboard 1 Movement Numpad Keybinds 0 Fullscreen 2 Font 24/Smallcaps Map View 50x35 Zoom Use 0% Tactical HUD 1 Map Filters NONE Filters NONE Steam 1 RUN: 62734004-4dcf-45e7-9266-7ec4fd7b2ad8